Workbook

Sheet Blad1
D2: Project: | E2: VBA in EXCEL | I2: Versie: | J2: 1.00
D3: Onderdeel: | E3: Let's talk
D4: Datum: | E4: 2020-04-01 | I4: Klik op logo Vullings Advies
B7: Invoer | I7: Tabel 3.1 - Sterkte- en vervormingseigenschappen voor beton (NEN-EN 1992-1-1:2005)
B8: Breedte | C8: = | D8: 250 | E8: mm | I8: Naam | O8: ="C" & O9 & "/" & O10 -> C12/15 | P8: ="C" & P9 & "/" & P10 -> C16/20 | Q8: C20/25 | R8: C25/30 | S8: C30/37 | T8: C35/45 | U8: C40/50 | V8: C45/55 | W8: C50/60 | X8: C55/67 | Y8: C60/75 | Z8: C70/85 | AA8: C80/95 | AB8: C90/105
B9: Hoogte | C9: = | D9: 500 | E9: mm | I9: Karakteristieke cilinderdruksterkte | M9: fck | N9: MPa | O9: 12 | P9: 16 | Q9: 20 | R9: 25 | S9: 30 | T9: 35 | U9: 40 | V9: 45 | W9: 50 | X9: 55 | Y9: 60 | Z9: 70 | AA9: 80 | AB9: 90
B10: Lengte | C10: = | D10: 1500 | E10: mm | I10: Karakteristieke kubusdruksterkte | M10: fck,cube | N10: MPa | O10: 15 | P10: 20 | Q10: 25 | R10: 30 | S10: 37 | T10: 45 | U10: 50 | V10: 55 | W10: 60 | X10: 67 | Y10: 75 | Z10: 85 | AA10: 95 | AB10: 105
B11: Doorsnede O | C11: = | D11: =(Breedte+Hoogte)*2 -> 1500 | E11: mm | I11: Gemiddelde cilinderdruksterkte | M11: fcm | N11: MPa | O11: =O9+8 -> 20 | P11: =P9+8 -> 24 | Q11: 28 | R11: 33 | S11: 38 | T11: 43 | U11: 48 | V11: 53 | W11: 58 | X11: 63 | Y11: 68 | Z11: 78 | AA11: 88 | AB11: 98
B12: Doorsnede A | C12: = | D12: =Breedte*Hoogte -> 125000 | E12: mm2 | I12: Gemiddelde axiale treksterkte | M12: fctm | N12: MPa | O12: =IF(O9<50,0.3*O9^(2/3),2.12*LN(1+O11/10)) -> 1.572444837 | P12: =IF(P9<50,0.3*P9^(2/3),2.12*LN(1+P11/10)) -> 1.904881262 | Q12: 2.210418899 | R12: 2.56496392 | S12: 2.896468154 | T12: 3.209962442 | U12: 3.508821286 | V12: 3.795446994 | W12: 4.063875938 | X12: 4.214293618 | Y12: 4.354742315 | Z12: 4.61047365 | AA12: 4.838650658 | AB12: 5.044637804
B13: Doorsnede W | C13: = | D13: =1/6*Breedte*Hoogte^2 -> 10416666.67 | E13: mm3 | I13: Karakteristieke axiale treksterkte (5%) | M13: fctk,0,05 | N13: MPa | O13: =0.7*O12 -> 1.100711386 | P13: =0.7*P12 -> 1.333416884 | Q13: 1.547293229 | R13: 1.795474744 | S13: 2.027527708 | T13: 2.246973709 | U13: 2.4561749 | V13: 2.656812896 | W13: 2.844713156 | X13: 2.950005533 | Y13: 3.048319621 | Z13: 3.227331555 | AA13: 3.38705546 | AB13: 3.531246463
B14: Doorsnede I | C14: = | D14: =1/12*Breedte*Hoogte^3 -> 2604166667 | E14: mm4 | I14: Karakteristieke axiale treksterkte (95%) | M14: fctk,0,95 | N14: MPa | O14: =1.3*O12 -> 2.044178287 | P14: =1.3*P12 -> 2.476345641 | Q14: 2.873544569 | R14: 3.334453096 | S14: 3.7654086 | T14: 4.172951174 | U14: 4.561467672 | V14: 4.934081092 | W14: 5.283038719 | X14: 5.478581704 | Y14: 5.66116501 | Z14: 5.993615744 | AA14: 6.290245855 | AB14: 6.558029146
I15: Secans E modulus | M15: Ecm | N15: GPa | O15: =22*(O11/10)^0.3 -> 27.08517709 | P15: 28.60790489 | Q15: 29.96195105 | R15: 31.47580621 | S15: 32.83656803 | T15: 34.0771462 | U15: 35.22046229 | V15: 36.28318822 | W15: 37.27786909 | X15: 38.21420646 | Y15: 39.09987371 | Z15: 40.74281778 | AA15: 42.24423817 | AB15: 43.6305315
B16: Beton | C16: : | D16: C35/45 | I16: Betonstuik bij piekspanning fc | M16: ec1 | N16: 0/00 | O16: =IF(0.7*O11^0.31>2.8,2.8,0.7*O11^0.31) -> 1.771810776 | P16: =IF(0.7*P11^0.31>2.8,2.8,0.7*P11^0.31) -> 1.87483704 | Q16: 1.966604505 | R16: 2.069366248 | S16: 2.16187687 | T16: 2.246328469 | U16: 2.324249914 | V16: 2.396754545 | W16: 2.464681005 | X16: 2.528678467 | Y16: 2.589260839 | Z16: 2.701763728 | AA16: 2.8 | AB16: 2.8
I17: Grenswaarde van de rek | M17: ecu1 | N17: 0/00 | O17: =IF(O9>50,2.8+27*((98-O11)/100)^4,3.5) -> 3.5 | P17: =IF(P9>50,2.8+27*((98-P11)/100)^4,3.5) -> 3.5 | Q17: 3.5 | R17: 3.5 | S17: 3.5 | T17: 3.5 | U17: 3.5 | V17: 3.5 | W17: 3.5 | X17: 3.20516875 | Y17: 3.0187 | Z17: 2.8432 | AA17: 2.8027 | AB17: 2.8
I18: Vervorming bij maximale sterkte | M18: ec2 | N18: 0/00 | O18: =IF(O9>50,2+0.085*(O9-50)^0.53,2) -> 2 | P18: =IF(P9>50,2+0.085*(P9-50)^0.53,2) -> 2 | Q18: 2 | R18: 2 | S18: 2 | T18: 2 | U18: 2 | V18: 2 | W18: 2 | X18: 2.199467906 | Y18: 2.288017533 | Z18: 2.415876924 | AA18: 2.515576591 | AB18: 2.600496833
I19: Grenswaarde van de rek | M19: ecu2 | N19: 0/00 | O19: =IF(O9>50,2.6+35*((90-O9)/100)^4,3.5) -> 3.5 | P19: =IF(P9>50,2.6+35*((90-P9)/100)^4,3.5) -> 3.5 | Q19: 3.5 | R19: 3.5 | S19: 3.5 | T19: 3.5 | U19: 3.5 | V19: 3.5 | W19: 3.5 | X19: 3.12521875 | Y19: 2.8835 | Z19: 2.656 | AA19: 2.6035 | AB19: 2.6
I20: Exponent | M20: n | N20: - | O20: =IF(O9>50,1.4+23.4*((90-O9)/100)^4,2) -> 2 | P20: =IF(P9>50,1.4+23.4*((90-P9)/100)^4,2) -> 2 | Q20: 2 | R20: 2 | S20: 2 | T20: 2 | U20: 2 | V20: 2 | W20: 2 | X20: 1.75114625 | Y20: 1.58954 | Z20: 1.43744 | AA20: 1.40234 | AB20: 1.4
I21: Vervorming bij maximale sterkte | M21: ec3 | N21: 0/00 | O21: =IF(O9>50,1.75+0.55*((O10-50)/40),1.75) -> 1.75 | P21: =IF(P9>50,1.75+0.55*((P10-50)/40),1.75) -> 1.75 | Q21: 1.75 | R21: 1.75 | S21: 1.75 | T21: 1.75 | U21: 1.75 | V21: 1.75 | W21: 1.75 | X21: 1.98375 | Y21: 2.09375 | Z21: 2.23125 | AA21: 2.36875 | AB21: 2.50625
I22: Grenswaarde van de rek | M22: ecu3 | N22: 0/00 | O22: =IF(O9>50,2.6+35*((90-O9)/100)^4,3.5) -> 3.5 | P22: =IF(P9>50,2.6+35*((90-P9)/100)^4,3.5) -> 3.5 | Q22: 3.5 | R22: 3.5 | S22: 3.5 | T22: 3.5 | U22: 3.5 | V22: 3.5 | W22: 3.5 | X22: 3.12521875 | Y22: 2.8835 | Z22: 2.656 | AA22: 2.6035 | AB22: 2.6

Sheet Toelichting
D2: Project: | E2: =Projectnaam -> VBA in EXCEL | J2: Versie: | L2: =Versie -> 1.00
D3: Onderdeel: | E3: =Onderdeel -> Let's talk
D4: Datum: | E4: =Datum -> 2020-04-01
B9: Let's talk
B10: De gesproken taal en de stem (man/vrouw) is afhankelijk van de huidige instelling van Windows.
B11: Om deze te wijzigen, neem de volgende stappen:
B13: 1) Ga naar Control Panel
B14: Ga naar Instellingen
B24: 2) Gaan naar Tijd en Taal (Spraak, regio, datum)
B39: 3) Voor een andere stem kies "Spraak" en
B40: "Stemmen". Er is een optie "Stemmen toevoegen".
B41: Gebruik deze als andere stemmen gewenst zijn.
B45: Voor meer informatie ga naar Microsoft Help.
